bitfinex-derivatives/quotes_BNBF0:USTF0_20250609
["timestamp","ask_amount","ask_price","bid_price","bid_amount"]
[1749494168773,1.217,659.62,659.26,1.50921484]
[1749494169170,1.19878398,659.66,659.26,1.50921484]
[1749494169471,1.226,659.67,659.26,1.50921484]
[1749494170878,0.503,659.66,659.26,1.50921484]
[1749494171874,0.503,659.66,659.27,1.50921484]
[1749494172080,1.70154811,659.66,659.27,1.50921484]
[1749494172274,1.536,659.66,659.27,1.50921484]
[1749494172680,2.73454886,659.66,659.27,1.50921484]
[1749494172881,1.536,659.66,659.27,1.50921484]
[1749494173081,2.73454882,659.66,659.27,1.50921484]
[1749494173281,1.19854882,659.65,659.27,1.50921484]
[1749494173578,2.73454935,659.66,659.27,1.50921484]
[1749494173781,1.536,659.66,659.27,1.50921484]
[1749494174079,2.73454935,659.66,659.27,1.50921484]
[1749494174281,1.19854935,659.65,659.27,1.50921484]
[1749494174478,1.19832421,659.65,659.27,1.50921484]
[1749494174676,2.73432421,659.66,659.27,1.50921484]
[1749494175482,1.536,659.66,659.27,1.50921484]
[1749494175682,1.536,659.66,659.28,1.50921484]
[1749494176079,2.73436882,659.66,659.28,1.50921484]
[1749494176280,1.536,659.66,659.28,1.50921484]
[1749494176583,2.7344011,659.66,659.27,1.50921484]
[1749494176779,1.536,659.66,659.27,1.50921484]
[1749494177083,2.7344011,659.66,659.27,1.50921484]
[1749494177285,1.19840035,659.65,659.26,1.50921484]
[1749494177585,1.19839773,659.65,659.26,1.50921484]
[1749494177880,1.536,659.66,659.13,2.2720064]
[1749494177881,2.73446964,659.66,659.27,1.50921484]
[1749494178183,1.19854312,659.65,659.29,1.50921484]
[1749494178386,1.536,659.66,659.29,1.50921484]
[1749494178979,2.73454312,659.66,659.29,1.50921484]
[1749494179182,2.40354838,659.65,659.29,1.50921484]
[1749494179483,1.205,659.65,659.27,1.50921484]
[1749494180082,2.40354812,659.65,659.27,1.50921484]
[1749494180384,1.205,659.65,659.27,1.50921484]
[1749494180887,2.40293915,659.65,659.27,1.50921484]
[1749494181087,1.19804637,659.64,659.27,1.50921484]
[1749494181289,1.205,659.65,659.27,1.50921484]
[1749494181588,2.40304851,659.65,659.27,1.50921484]
[1749494181789,1.19804989,659.64,659.27,1.50921484]
[1749494181986,2.40304917,659.65,659.27,1.50921484]
[1749494182185,0.899,659.63,659.27,1.50921484]
[1749494183588,0.899,659.63,659.26,1.50921484]
[1749494183988,0.26391027,659.54,659.26,1.50921484]
[1749494184483,0.954,659.53,659.26,1.50921484]
[1749494186092,0.954,659.53,659.27,1.50921484]
[1749494187190,0.954,659.53,659.29,1.50921484]
[1749494188289,0.954,659.53,659.3,1.50921484]
[1749494188793,0.954,659.53,659.29,1.50921484]
[1749494189291,0.954,659.53,659.31,1.50921484]
[1749494190490,0.954,659.53,659.3,1.50921484]
[1749494190890,0.954,659.53,659.31,1.50921484]
[1749494191395,0.954,659.53,659.26,1.50921484]
[1749494191591,0.954,659.53,659.24,1.50921484]
[1749494200401,0.954,659.53,659.25,1.50921484]
[1749494201402,0.954,659.53,659.28,1.50921484]
[1749494203602,0.954,659.53,659.11,1.50921484]
[1749494204403,0.26391027,659.54,659.11,1.50921484]
[1749494205205,1.648,659.53,659.11,1.50921484]
[1749494210913,1.648,659.53,659.1,1.50921484]
[1749494211109,1.648,659.53,659.07,1.50921484]
[1749494212209,1.648,659.53,659.06,1.50921484]
[1749494212509,1.648,659.53,659.07,1.50921484]
[1749494212708,1.648,659.53,659.06,1.50921484]
[1749494213311,0.503,659.52,659.06,1.50921484]
[1749494213514,0.503,659.52,659.19,1.50921484]
[1749494213714,0.503,659.52,659.2,1.50921484]
[1749494213913,0.503,659.52,659.19,1.50921484]
[1749494214514,0.503,659.52,659.2,1.50921484]
[1749494214714,0.503,659.52,659.19,1.50921484]
[1749494216013,1.182,659.51,659.19,1.50921484]
[1749494216512,1.182,659.51,659.2,1.50921484]
[1749494217216,1.182,659.51,659.19,1.50921484]
[1749494218214,1.182,659.51,659.18,1.50921484]
[1749494218719,1.182,659.51,659.19,1.50921484]
[1749494219019,1.182,659.51,659.18,1.50921484]
[1749494220418,1.217,659.5,659.18,1.50921484]
[1749494220914,1.217,659.5,659.19,1.50921484]
[1749494222716,1.217,659.5,659.17,1.50921484]
[1749494223019,1.217,659.5,659.16,1.50921484]
[1749494226721,1.217,659.5,659.21,1.50921484]
[1749494228422,1.217,659.5,659.2,1.50921484]
[1749494231325,1.217,659.5,659.21,1.50921484]
[1749494231726,1.217,659.5,659.22,1.50921484]
[1749494232520,1.217,659.5,658.66,0.26391027]
[1749494232521,1.217,659.5,659.18,1.50921484]
[1749494233023,1.217,659.5,659.19,1.50921484]
[1749494238222,1.217,659.5,659.2,1.50921484]
[1749494240630,1.217,659.5,659.21,1.50921484]
[1749494240827,1.227,659.49,659.21,1.50921484]
[1749494242331,1.227,659.49,659.08,2.2720064]
[1749494242332,1.227,659.49,659.28,1.50921484]
[1749494243031,1.227,659.49,659.29,1.50921484]
[1749494244329,1.227,659.49,659.26,1.50921484]
[1749494244832,1.227,659.49,659.25,1.50921484]
[1749494246329,1.227,659.49,659.24,1.50921484]
[1749494246730,1.227,659.49,659.25,1.50921484]
[1749494247230,1.227,659.49,659.24,1.50921484]
[1749494247831,1.227,659.49,659.23,1.50921484]
[1749494248030,1.227,659.49,659.22,1.50921484]
[1749494250734,1.227,659.49,659.23,1.50921484]
[1749494250938,1.227,659.49,659.22,1.50921484]
[1749494251733,1.152,659.48,659.22,1.50921484]
[1749494252137,1.152,659.48,659.21,1.50921484]
[1749494252535,1.152,659.48,659.2,1.50921484]
[1749494254237,1.152,659.48,659.21,1.50921484]
[1749494255340,1.152,659.48,659.17,1.50921484]
[1749494255841,2.35289243,659.48,659.17,1.50921484]
[1749494256037,1.20090545,659.47,659.12,1.50921484]
[1749494256237,2.35290545,659.48,659.12,1.50921484]
[1749494256438,1.152,659.48,659.12,1.50921484]
[1749494256637,2.35266223,659.48,659.12,1.50921484]
[1749494256842,1.152,659.48,659.11,1.50921484]
[1749494257141,2.35266361,659.48,659.11,1.50921484]
[1749494257340,1.20066361,659.47,659.11,1.50921484]
[1749494257539,2.35266361,659.48,659.11,1.50921484]
[1749494257743,2.35266361,659.48,659.12,1.50921484]
[1749494258040,1.20065819,659.47,659.12,1.50921484]
[1749494258243,1.152,659.48,659.12,1.50921484]
[1749494258741,1.152,659.48,659.07,1.50921484]
[1749494260142,1.152,659.48,659.08,1.50921484]
[1749494262942,1.152,659.48,659.09,1.50921484]
[1749494263246,1.655,659.48,659.09,1.50921484]
[1749494264542,3.227,659.48,659.09,1.50921484]
[1749494265648,4.282,659.48,659.09,1.50921484]
[1749494265847,4.282,659.48,659.1,1.50921484]
[1749494267245,1.136,659.47,659.1,1.50921484]
[1749494268551,1.136,659.47,659.16,1.50921484]
[1749494268846,1.136,659.47,659.17,1.50921484]
[1749494274348,1.136,659.47,659.16,1.50921484]
[1749494275750,1.136,659.47,659.18,1.50921484]
[1749494279755,1.136,659.47,659.19,1.50921484]
[1749494282658,1.136,659.47,659.15,1.50921484]
[1749494284368,1.136,659.47,659.16,1.50921484]
[1749494287469,1.136,659.47,659.02,2.2720064]
[1749494287470,1.136,659.47,659.15,1.50921484]
[1749494289668,1.136,659.47,659.16,1.50921484]
[1749494291472,1.136,659.47,659.14,1.50921484]
[1749494292075,1.136,659.47,659.15,1.50921484]
[1749494292471,1.136,659.47,659.18,1.50921484]
[1749494293879,1.136,659.47,659.17,1.50921484]
[1749494294478,1.136,659.47,659.18,1.50921484]
[1749494294778,1.136,659.47,659.17,1.50921484]
[1749494297778,0.988,659.46,659.17,1.50921484]
[1749494300177,0.988,659.46,659.18,1.50921484]
[1749494301382,0.988,659.46,659.2,1.50921484]
[1749494303577,0.988,659.46,659.21,1.50921484]
[1749494303781,0.988,659.46,659.2,1.50921484]
[1749494303978,0.988,659.46,659.21,1.50921484]
[1749494304683,0.988,659.46,659.22,1.50921484]
[1749494304878,0.988,659.46,659.2,1.50921484]
[1749494306586,0.988,659.46,659.21,1.50921484]
[1749494312281,0.988,659.46,659.2,1.50921484]
[1749494313984,0.988,659.46,659.19,1.50921484]
[1749494314690,0.988,659.46,659.2,1.50921484]
[1749494315383,0.988,659.46,659.21,1.50921484]
[1749494316191,0.988,659.46,659.18,1.50921484]
[1749494317089,0.988,659.46,659.17,1.50921484]
[1749494322393,0.988,659.46,659.18,1.50921484]
[1749494323790,3.03275907,659.54,659.19,1.50921484]
[1749494323990,2.7688488,659.53,659.19,1.50921484]
[1749494324190,0.26391027,659.54,659.19,1.50921484]
[1749494325295,1.83856465,659.54,659.19,1.50921484]
[1749494325491,0.26391027,659.54,659.19,1.50921484]
[1749494325896,0.26391027,659.54,659.22,1.50921484]
[1749494326392,0.26391027,659.54,659.21,1.50921484]
[1749494327097,0.26391027,659.54,659.22,1.50921484]
[1749494328598,1.83898102,659.54,659.22,1.50921484]
[1749494328798,0.26391027,659.54,659.22,1.50921484]
[1749494328996,1.83898236,659.54,659.22,1.50921484]
[1749494329195,0.26391027,659.54,659.22,1.50921484]
[1749494329501,0.26391027,659.54,659.21,1.50921484]
[1749494331700,0.77641887,659.54,659.21,1.50921484]
[1749494331901,0.26391027,659.54,659.21,1.50921484]
[1749494332402,0.26391027,659.54,659.16,1.50921484]
[1749494332599,1.83884584,659.54,659.16,1.50921484]
[1749494332804,0.26391027,659.54,659.16,1.50921484]
[1749494333400,1.46191027,659.54,659.16,1.50921484]
[1749494333900,4.23261017,659.54,659.16,1.50921484]
[1749494334099,2.7706999,659.53,659.16,1.50921484]
[1749494334298,1.46191027,659.54,659.02,2.2720064]
[1749494334299,1.57490318,659.52,659.17,1.50921484]
[1749494334500,1.004,659.52,659.17,1.50921484]
[1749494334803,2.19961315,659.52,659.16,1.50921484]
[1749494335001,1.06239923,659.51,659.16,1.50921484]
[1749494335204,1.004,659.52,659.17,1.50921484]
[1749494335804,1.004,659.52,659.02,2.2720064]
[1749494335805,3.77451482,659.52,659.16,1.50921484]
[1749494336004,2.77051482,659.51,659.17,1.50921484]
[1749494336202,2.25800958,659.51,659.17,1.50921484]
[1749494336607,2.2580101,659.5,659.17,1.50921484]
[1749494336808,1.19561248,659.49,659.17,1.50921484]
[1749494337004,2.25801114,659.51,659.17,1.50921484]
[1749494337208,2.77051671,659.51,659.17,1.50921484]
[1749494337508,2.25801114,659.51,659.17,1.50921484]
[1749494338209,1.19561248,659.51,659.17,1.50921484]
[1749494338406,1.06214328,659.51,659.17,1.50921484]
[1749494338611,1.70812325,659.51,659.17,1.50921484]
[1749494338908,2.77026666,659.51,659.17,1.50921484]
[1749494339112,2.25775942,659.5,659.17,1.50921484]
[1749494339312,1.19561609,659.49,659.17,1.50921484]
[1749494339513,2.77016272,659.51,659.17,1.50921484]
[1749494339711,1.06214333,659.51,659.17,1.50921484]
[1749494340211,2.71151216,659.52,659.18,1.50921484]
[1749494340415,2.76966208,659.51,659.18,1.50921484]
[1749494340611,1.19510545,659.5,659.18,1.50921484]
[1749494340813,1.57455668,659.51,659.18,1.50921484]
[1749494341012,1.70750653,659.51,659.18,1.50921484]
[1749494341316,1.19510059,659.51,659.18,1.50921484]
[1749494341612,1.004,659.52,659.18,1.50921484]
[1749494341817,1.51640414,659.52,659.18,1.50921484]
[1749494342013,1.004,659.52,659.18,1.50921484]
[1749494342316,1.51640294,659.52,659.23,1.50921484]
[1749494342516,1.004,659.52,659.23,1.50921484]
[1749494342914,3.77323503,659.52,659.23,1.50921484]
[1749494343117,2.76923503,659.51,659.23,1.50921484]
[1749494343414,1.19509827,659.51,659.15,1.50921484]
[1749494343614,1.06182079,659.51,659.15,1.50921484]
[1749494343815,1.004,659.52,659.14,1.50921484]
[1749494343816,1.19522828,659.5,659.14,1.50921484]
[1749494344015,1.19522828,659.49,659.14,1.50921484]
[1749494344217,1.19522828,659.48,659.13,1.50921484]
[1749494344519,2.76972061,659.49,659.12,1.50921484]
[1749494344715,1.70788987,659.48,659.13,1.50921484]
[1749494344916,1.70661178,659.48,659.13,1.50921484]
[1749494345114,1.7064119,659.48,659.13,1.50921484]
[1749494345415,0.51246234,659.48,659.12,1.50921484]
[1749494345613,1.19395368,659.48,659.12,1.50921484]
[1749494345816,1.05993083,659.49,659.12,1.50921484]
[1749494346016,1.19395073,659.49,659.13,1.50921484]
[1749494346216,1.19395073,659.49,659.0,2.2720064]
[1749494346217,1.70641061,659.49,659.12,1.50921484]
[1749494346417,0.51245988,659.49,659.12,1.50921484]
[1749494346615,2.766683,659.49,659.13,1.50921484]
[1749494346817,2.76601561,659.48,659.07,1.50921484]
[1749494347016,0.51245988,659.47,659.05,1.50921484]
[1749494347322,1.413,659.46,659.03,1.50921484]
[1749494347619,1.413,659.46,659.02,1.50921484]
[1749494348117,3.11956485,659.46,659.02,1.50921484]
[1749494348321,3.11956485,659.46,658.88,2.2720064]
[1749494348322,1.19438124,659.45,659.0,1.50921484]
[1749494348518,1.19438124,659.44,658.99,1.50921484]
[1749494348716,1.05832274,659.45,658.99,1.50921484]
[1749494348921,1.5705239,659.45,658.99,1.50921484]
[1749494349122,1.19341319,659.44,658.99,1.50921484]
[1749494349322,1.413,659.46,658.98,1.50921484]
[1749494349625,1.1934214,659.45,658.97,1.50921484]
[1749494349826,1.1934214,659.44,658.97,1.50921484]
[1749494350325,0.51220481,659.44,658.97,1.50921484]
[1749494350623,1.70504583,659.45,658.97,1.50921484]
[1749494350822,0.51162443,659.45,658.97,1.50921484]
[1749494351122,1.19058731,659.44,658.97,1.50921484]
[1749494351423,1.664,659.44,658.96,1.50921484]
[1749494351622,4.42450217,659.44,658.96,1.50921484]
[1749494351825,2.75999234,659.43,658.96,1.50921484]
[1749494352122,2.24616472,659.42,658.96,1.50921484]
[1749494352324,1.70051479,659.41,658.96,1.50921484]
[1749494352522,2.75727367,659.43,658.96,1.50921484]
[1749494352722,2.7572771,659.42,658.96,1.50921484]
[1749494352925,1.18940113,659.41,658.96,1.50921484]
[1749494353126,1.664,659.44,658.96,1.50921484]
[1749494353127,2.75650119,659.43,658.96,1.50921484]
[1749494353325,0.51086154,659.42,658.95,1.50921484]
[1749494353729,1.18940113,659.43,658.95,1.50921484]
[1749494353929,0.99,659.41,658.94,1.50921484]
[1749494355529,0.99,659.41,658.93,1.50921484]
[1749494356226,2.17770463,659.41,658.93,1.50921484]
[1749494356425,0.99,659.41,658.93,1.50921484]
[1749494356629,0.99,659.41,658.95,1.50921484]
[1749494356926,0.99,659.41,658.97,1.50921484]
[1749494357925,2.17770517,659.41,658.97,1.50921484]
[1749494358130,0.99,659.41,658.98,1.50921484]
[1749494358831,2.17740793,659.41,658.98,1.50921484]
[1749494359031,1.1874105,659.4,658.98,1.50921484]
[1749494359230,0.99,659.41,658.98,1.50921484]
[1749494359832,0.99,659.41,658.97,1.50921484]
[1749494360034,0.99,659.41,658.94,1.50921484]
[1749494360231,0.503,659.4,658.94,1.50921484]
[1749494361031,1.207,659.39,658.94,1.50921484]
[1749494362235,1.207,659.39,658.93,1.50921484]
[1749494362633,1.207,659.39,658.92,1.50921484]
[1749494363336,1.207,659.39,658.91,1.50921484]
[1749494363836,1.207,659.39,658.92,1.50921484]
[1749494364236,1.207,659.39,658.91,1.50921484]
[1749494364431,1.207,659.39,658.78,2.2720064]
[1749494364432,1.207,659.39,658.84,1.50921484]
[1749494364634,2.77176226,659.39,658.81,1.50921484]
[1749494364834,2.7506809,659.38,658.79,1.50921484]
[1749494365034,2.24057896,659.38,658.79,1.50921484]
[1749494365234,1.18591699,659.38,658.79,1.50921484]
[1749494365638,0.50983127,659.38,658.79,1.50921484]
[1749494365838,2.74912231,659.38,658.79,1.50921484]
[1749494366133,1.18528084,659.38,658.79,1.50921484]
[1749494366336,0.50984185,659.38,658.77,1.50921484]
[1749494366537,2.3923013,659.39,658.77,1.50921484]
[1749494366735,2.74917375,659.38,658.77,1.50921484]
[1749494366939,2.2393319,659.38,658.77,1.50921484]
[1749494367337,1.207,659.39,658.77,1.50921484]
[1749494368441,1.207,659.39,658.76,1.50921484]
[1749494369038,3.95403103,659.39,658.76,1.50921484]
[1749494369240,2.74703103,659.38,658.76,1.50921484]
[1749494369441,2.23744112,659.38,658.76,1.50921484]
[1749494369738,1.207,659.39,658.76,1.50921484]
[1749494370538,2.39071168,659.39,658.76,1.50921484]
[1749494370842,1.18371168,659.38,658.76,1.50921484]
[1749494371443,1.18386157,659.38,658.75,1.50921484]
[1749494371638,1.18386121,659.38,658.74,1.50921484]
[1749494372539,1.18386121,659.38,658.73,1.50921484]
[1749494372739,1.207,659.39,658.41,0.26403241]
[1749494372740,1.207,659.39,658.72,1.50921484]
[1749494373046,1.207,659.39,658.7,1.50921484]
[1749494374242,1.207,659.39,658.71,1.50921484]
[1749494374446,1.207,659.39,658.56,2.2720064]
[1749494374447,1.207,659.39,658.72,1.50921484]
[1749494374645,1.207,659.39,658.71,1.50921484]
[1749494374843,0.944,659.38,658.71,1.50921484]
[1749494375346,2.12789617,659.38,658.72,1.50921484]
[1749494375543,2.12789617,659.38,658.71,1.50921484]
[1749494376047,0.944,659.38,658.71,1.50921484]
[1749494376849,2.12828435,659.38,658.71,1.50921484]
[1749494377148,0.944,659.38,658.71,1.50921484]
[1749494377349,2.12828299,659.38,658.71,1.50921484]
[1749494377849,2.12828299,659.38,658.7,1.50921484]
[1749494378048,2.12828299,659.38,658.71,1.50921484]
[1749494378352,0.944,659.38,658.7,1.50921484]
[1749494378550,0.944,659.38,658.71,1.50921484]
[1749494378750,2.12939904,659.38,658.71,1.50921484]
[1749494379051,1.18539963,659.37,658.71,1.50921484]
[1749494379251,2.12939963,659.38,658.71,1.50921484]
[1749494380051,0.944,659.38,658.71,1.50921484]
[1749494380450,1.448,659.37,658.7,1.50921484]
[1749494380754,2.982,659.37,658.71,1.50921484]
[1749494380953,1.18333949,659.36,658.71,1.50921484]
[1749494381151,2.982,659.37,658.71,1.50921484]
[1749494381354,1.1832377,659.36,658.7,1.50921484]
[1749494381651,2.982,659.37,658.67,1.50921484]
[1749494381850,1.18329847,659.36,658.67,1.50921484]
[1749494382054,2.23353009,659.36,658.68,1.50921484]
[1749494382355,2.23355178,659.35,658.68,1.50921484]
[1749494382552,1.18334274,659.34,658.68,1.50921484]
[1749494382854,2.74215143,659.36,658.71,1.50921484]
[1749494383050,2.23355178,659.36,658.71,1.50921484]
[1749494383255,2.23355138,659.35,658.71,1.50921484]
[1749494383453,1.18334139,659.34,658.71,1.50921484]
[1749494383751,1.18334276,659.36,658.72,1.50921484]
[1749494383953,1.55795449,659.36,658.72,1.50921484]
[1749494384150,2.74129735,659.36,658.72,1.50921484]
[1749494384452,0.2640815,659.21,658.72,1.50921484]
[1749494385053,0.503,659.2,658.72,1.50921484]
[1749494385257,0.503,659.2,658.6,1.50921484]
[1749494385551,0.503,659.2,658.59,1.50921484]
[1749494386457,0.503,659.2,658.58,1.50921484]
[1749494387054,0.503,659.2,658.59,1.50921484]
[1749494388356,0.503,659.2,658.58,1.50921484]
[1749494388754,0.503,659.2,658.59,1.50921484]
[1749494389559,0.503,659.2,658.58,1.50921484]
[1749494390153,0.503,659.2,658.59,1.50921484]
[1749494391555,0.503,659.2,658.57,1.50921484]
[1749494392358,0.503,659.2,658.58,1.50921484]
[1749494392558,0.503,659.2,658.57,1.50921484]
[1749494393259,1.268,659.19,658.58,1.50921484]
[1749494393562,1.268,659.19,658.53,1.50921484]
[1749494394062,1.268,659.19,658.54,1.50921484]
[1749494395261,1.268,659.19,658.59,1.50921484]
[1749494395459,1.268,659.19,658.57,1.50921484]
[1749494396163,1.268,659.19,658.58,1.50921484]
[1749494397365,1.268,659.19,658.59,1.50921484]
[1749494397765,1.009,659.18,658.59,1.50921484]
[1749494398268,1.009,659.18,658.6,1.50921484]
[1749494401470,1.009,659.18,658.61,1.50921484]
[1749494402370,1.009,659.18,658.62,1.50921484]
[1749494402565,1.057,659.17,658.62,1.50921484]
[1749494403366,1.057,659.17,658.67,1.50921484]
[1749494403670,1.057,659.17,658.7,1.50921484]
[1749494403867,1.057,659.17,658.74,1.50921484]
[1749494404170,1.057,659.17,658.28,0.2640815]
[1749494404171,1.057,659.17,658.76,1.50921484]
[1749494404769,1.057,659.17,658.77,1.50921484]
[1749494405368,1.057,659.17,658.76,1.50921484]
[1749494405672,0.503,659.16,658.76,1.50921484]
[1749494405872,0.503,659.16,658.77,1.50921484]
[1749494406573,0.503,659.16,658.78,1.50921484]
[1749494407771,0.503,659.16,658.79,1.50921484]
[1749494408672,0.503,659.16,658.81,1.50921484]
[1749494408873,0.503,659.16,658.28,0.2640815]
[1749494408874,0.503,659.16,658.85,1.50921484]
[1749494409670,0.503,659.16,658.86,1.50921484]
[1749494410175,0.503,659.16,658.85,1.50921484]
[1749494410372,0.503,659.16,658.86,1.50921484]
[1749494412376,0.503,659.16,658.87,1.50921484]
[1749494412572,0.503,659.16,658.9,1.50921484]
[1749494412875,0.503,659.16,658.81,1.50921484]
[1749494413572,0.503,659.16,658.82,1.50921484]
[1749494413773,0.503,659.16,658.86,1.50921484]
[1749494415275,0.503,659.16,658.66,2.2720064]
[1749494415276,0.503,659.16,658.85,1.50921484]
[1749494415475,0.924,659.15,658.85,1.50921484]
[1749494417877,0.924,659.15,658.84,1.50921484]
[1749494418477,0.924,659.15,658.85,1.50921484]
[1749494418674,0.924,659.15,658.84,1.50921484]
[1749494418877,0.924,659.15,658.86,1.50921484]
[1749494419077,0.924,659.15,658.87,1.50921484]
[1749494419773,0.924,659.15,658.28,0.2640815]
[1749494419774,0.924,659.15,658.85,1.50921484]
[1749494419973,0.924,659.15,658.86,1.50921484]
[1749494420578,0.924,659.15,658.84,1.50921484]
[1749494422778,0.924,659.15,658.82,1.50921484]
[1749494422978,0.924,659.15,658.83,1.50921484]
[1749494423278,0.924,659.15,658.82,1.50921484]
[1749494423475,0.924,659.15,658.81,1.50921484]
[1749494423978,0.924,659.15,658.82,1.50921484]
[1749494424475,0.924,659.15,658.81,1.50921484]
[1749494425675,0.924,659.15,658.85,1.50921484]
[1749494425975,0.924,659.15,658.81,1.50921484]
[1749494427576,1.057,659.17,658.81,1.50921484]
[1749494428777,1.009,659.18,658.82,1.50921484]
[1749494430583,1.009,659.18,658.85,1.50921484]
[1749494431181,1.069,659.17,658.85,1.50921484]
[1749494432486,1.069,659.17,658.86,1.50921484]
[1749494432686,1.069,659.17,658.83,1.50921484]
[1749494434888,1.069,659.17,658.82,1.50921484]
[1749494435190,0.928,659.16,658.82,1.50921484]
[1749494435887,0.928,659.16,658.83,1.50921484]
[1749494437493,0.928,659.16,658.76,1.50921484]
[1749494437693,0.928,659.16,658.83,1.50921484]
[1749494441293,0.928,659.16,658.82,1.50921484]
[1749494445598,0.928,659.16,658.81,1.50921484]
[1749494447304,0.928,659.16,658.82,1.50921484]
[1749494449503,0.928,659.16,658.83,1.50921484]
[1749494449704,0.928,659.16,658.82,1.50921484]
[1749494450107,0.928,659.16,658.8,1.50921484]
[1749494451108,0.928,659.16,658.81,1.50921484]
[1749494451808,1.345,659.15,658.81,1.50921484]
[1749494455413,1.345,659.15,658.82,1.50921484]
[1749494455614,1.345,659.15,658.8,1.50921484]
[1749494456415,1.345,659.15,658.79,1.50921484]
[1749494456710,1.345,659.15,658.78,1.50921484]
[1749494457615,1.345,659.15,658.77,1.50921484]
[1749494458216,1.541,659.14,658.77,1.50921484]
[1749494460014,1.541,659.14,658.79,1.50921484]
[1749494462520,1.541,659.14,658.77,1.50921484]
[1749494462717,1.541,659.14,658.76,1.50921484]
[1749494463118,1.219,659.13,658.73,1.50921484]
[1749494463519,1.219,659.13,658.68,1.50921484]
[1749494464018,1.219,659.13,658.7,1.50921484]
[1749494466318,1.219,659.13,658.69,1.50921484]
[1749494466619,1.219,659.13,658.7,1.50921484]
[1749494468721,1.219,659.13,658.54,2.2720064]
[1749494468722,1.219,659.13,658.69,1.50921484]
[1749494470722,1.104,659.12,658.69,1.50921484]
[1749494471329,1.104,659.12,658.63,1.50921484]
[1749494473330,1.104,659.12,658.66,1.50921484]
[1749494477039,1.104,659.12,658.5,2.2720064]
[1749494477238,1.104,659.12,658.28,0.2640815]
[1749494477541,1.104,659.12,658.68,1.51297007]
[1749494478135,1.104,659.12,658.67,1.51297007]
[1749494478436,1.104,659.12,658.69,1.51297007]
[1749494478636,1.104,659.12,658.7,1.51297007]
[1749494479336,1.104,659.12,658.63,1.51297007]
[1749494479540,2.29512125,659.12,658.63,1.51297007]
[1749494479837,1.104,659.12,658.63,1.51297007]
[1749494480140,1.104,659.12,658.62,1.51297007]
[1749494480337,1.61339789,659.12,658.59,1.51297007]
[1749494480540,3.85448521,659.12,658.58,1.51297007]
[1749494480741,2.750446,659.11,658.58,1.51297007]
[1749494480940,0.50939593,659.1,658.58,1.51297007]
[1749494481138,1.05101284,659.11,658.57,1.51297007]
[1749494481445,0.50801627,659.11,658.64,1.51297007]
[1749494481642,1.61201627,659.12,658.64,1.51297007]
[1749494481838,1.104,659.12,658.64,1.51297007]
[1749494482039,0.503,659.11,658.6,1.51297007]
[1749494482238,1.55282456,659.11,658.54,1.51297007]
[1749494482441,1.087,659.1,658.47,1.51297007]
[1749494482641,1.5949191,659.1,658.46,1.51297007]
[1749494482836,3.83067265,659.1,658.46,1.51297007]
[1749494483041,2.74367265,659.09,658.46,1.51297007]
[1749494483241,1.55501748,659.08,658.45,1.51297007]
[1749494483439,2.74088018,659.09,658.42,1.51297007]
[1749494483742,1.69122362,659.08,658.42,1.51297007]
[1749494483939,1.18604264,659.07,658.4,1.51297007]
[1749494484141,1.18599969,659.06,658.38,1.51297007]
[1749494484345,1.1859924,659.05,658.38,1.51297007]
[1749494484542,1.087,659.1,658.0,0.26417572]
[1749494484543,1.18599219,659.04,658.36,1.51297007]
[1749494484742,2.74105049,659.07,658.36,1.51297007]
[1749494484946,2.74105049,659.06,658.36,1.51297007]
[1749494485146,1.087,659.1,658.36,1.51297007]
[1749494485147,2.74105049,659.05,658.36,1.51297007]
[1749494485343,2.74105049,659.04,658.35,1.51297007]
[1749494485545,2.74105049,659.03,658.33,1.51297007]
[1749494485744,2.74105049,659.02,658.33,1.51297007]
[1749494485943,2.73267453,659.01,658.33,1.51297007]
[1749494486144,2.73124625,659.0,658.33,1.51297007]
[1749494486347,1.18201346,658.99,658.33,1.51297007]
[1749494486549,2.72724063,659.09,658.32,1.51297007]
[1749494486746,0.50391735,659.08,658.32,1.51297007]
[1749494487350,0.50391735,659.08,658.41,1.51297007]
[1749494487648,0.50391735,659.08,658.4,1.51297007]
[1749494488145,3.30664823,659.1,658.4,1.51297007]
[1749494488351,3.02814762,659.09,658.39,1.51297007]